Cogmind - Beta 10.2 @@@ ROGUE MODE // 2020.12.21 @ 08:17:18 Player: WeirdFoe Result: Destroyed by G-47 Trooper with Particle Gun Performance ------------- Evolutions (2) 1000 Regions Visited (4) 800 Robots Destroyed (29) 145 Value Destroyed (913) 913 Prototype IDs (0) 0 Alien Tech Used (0) 0 Bonus (248) 248 TOTAL SCORE: 3106 Bonus ------- Pacifist 200 High Alert Combat Kills 48 Cogmind --------- Core Integrity 0/550 Matter 154/300 Energy 99/100 System Corruption 4% Temperature Cool (9) Movement Core (50) Location -8/Storage Parts ------- > --- POWER (1) -------- (None) > --- PROPULSION (2) --- (None) > --- UTILITY (5) ------ Launcher Guidance Computer > --- WEAPON (3) ------- (None) > --- INVENTORY (4) ---- Nuclear Core Aluminum Leg Assault Cannon Peak State ------------ > --- POWER ------------ Improved Ion Engine > --- PROPULSION ------- Improved Treads Improved Treads > --- UTILITY ---------- Improved Heat Sink Small Storage Unit Advanced Weight Redist. System Launcher Guidance Computer Light Armor Plating > --- WEAPON ----------- Heavy Assault Rifle Heavy Assault Rifle Rocket Launcher > --- INVENTORY -------- Nuclear Core Aluminum Leg Aluminum Leg Heavy EM Pulse Gun Particle Gun Assault Cannon [Rating: 25] Favorites ----------- Power Ion Engine Engine Ion Engine Propulsion Improved Treads Treads Improved Treads Leg Aluminum Leg Wheel Compact Wheel Utility Small Storage Unit Device Advanced Weight Redist. System Storage Small Storage Unit Processor Launcher Guidance Computer Protection Light Armor Plating Weapon Heavy Assault Rifle Energy Gun Medium Laser Ballistic Gun Heavy Assault Rifle Launcher Rocket Launcher Build | -11 -10 -9 -8 -8 ------- Run | Scr Mat Mat Mat Sto Slots Evolved 4 | . . 2 2 . Power . | . . . . . Propulsion . | . . . . . Utility 3 | . . 2 1 . Weapon 1 | . . . 1 . Parts Attached 44 | 6 4 14 13 7 Power 4 | 1 . 1 1 1 Engine 4 | 1 . 1 1 1 Core . | . . . . . Reactor . | . . . . . Propulsion 7 | 2 . 3 . 2 Treads 2 | . . 2 . . Leg 2 | . . . . 2 Wheel 3 | 2 . 1 . . Hover . | . . . . . Flight . | . . . . . Utility 18 | 1 2 5 9 1 Device 8 | . . 2 6 . Storage 2 | 1 . 1 . . Processor 2 | . 1 . 1 . Hackware . | . . . . . Protection 6 | . 1 2 2 1 Artifact . | . . . . . Weapon 15 | 2 2 5 3 3 Energy Gun 7 | 2 1 2 . 2 Energy Cannon . | . . . . . Ballistic Gun 4 | . . 2 2 . Ballistic Cannon . | . . . . . Launcher 4 | . 1 1 1 1 Special Weapon . | . . . . . Impact Weapon . | . . . . . Slashing Weapon . | . . . . . Piercing Weapon . | . . . . . Special Melee Weapon . | . . . . . Unidentified Prototypes . | . . . . . Parts Lost 9 | . . . . 9 Power 1 | . . . . 1 Propulsion 1 | . . . . 1 Utility 2 | . . . . 2 Weapon 5 | . . . . 5 Highest Loss Streak 6 | . . . . 6 Average Slot Usage (%) 95 | . 98 100 99 83 Engine 9 | . 14 11 9 7 Treads 9 | . . . 18 7 Leg 1 | . . . . 8 Wheel 8 | . 28 21 . . Device 12 | . . 5 22 11 Storage 13 | . 14 22 10 8 Processor 3 | . 3 . 2 9 Protection 11 | . 9 16 8 10 Energy Gun 4 | . 19 5 . 3 Ballistic Gun 13 | . . 11 18 12 Launcher 7 | . 8 5 9 4 Naked Turns . | . . . . . Heaviest Build 27 | 12 17 23 27 27 Greatest Support 55 | 32 32 46 55 55 Greatest Overweight (x) 1 | . . . . 1 Average Overweight (x) . | . . . . . Largest Inventory Capacity 6 | 6 6 6 6 6 Average Capacity 5 | 4 6 6 6 5 Most Carried 6 | 4 6 6 6 6 Average Carried 5 | 2 5 5 5 4 Final Capacity 6 | 6 6 6 6 4 Final Carried 6 | 4 6 6 6 3 Class Distribution -------------------- 51% | Mutant 25% | Scavenger-Gunner 16% | Scavenger-Tank 6% | Scavenger-Mutant Dominant Class ---------------- Mutant | -10/Materials Mutant | -9/Materials Scavenger-Tank | -8/Materials Scavenger-Gunner | -8/Storage Resources | -11 -10 -9 -8 -8 ----------- Run | Scr Mat Mat Mat Sto Matter Collected 963 | 230 . 318 252 163 Remotely . | . . . . . Salvage Created 856 | . . 176 501 179 Parts 53 | . . 15 27 11 Haulers Intercepted . | . . . . . Recyclers Shooed 1 | . . . 1 . Parts Field Recycled . | . . . . . Retrieved Matter . | . . . . . Parts Self-Destructed . | . . . . . Prevented . | . . . . . Kills | -11 -10 -9 -8 -8 ------- Run | Scr Mat Mat Mat Sto Combat Hostiles Destroyed 24 | . . 7 13 4 Guns 13 | . . 3 8 2 AOE 11 | . . 4 5 2 Classes Destroyed 8 | . . 4 2 2 Worker 1 | . . . . 1 Builder 1 | . . 1 . . Recycler 1 | . . . 1 . Operator 1 | . . . . 1 Watcher 1 | . . . 1 . Swarmer 9 | . . 4 5 . Grunt 9 | . . 1 5 3 Sentry 6 | . . 2 3 1 Best Kill Streak 6 | . . 6 5 3 Combat Bots Only 5 | . . 5 5 2 Max Kills in Single Turn 3 | . . 3 3 2 Gunslinging 1 | . . . 1 . Exploded 3 | . . 3 2 1 Melee . | . . . . . Uniques/NPCs Destroyed . | . . . . . Combat | -11 -10 -9 -8 -8 -------- Run | Scr Mat Mat Mat Sto Damage Taken 2023 | . 69 179 494 1281 Core 631 | . 10 62 77 482 Absorbed by Shields . | . . . . . Core Remaining (%) 93 | 100 96 84 . . Volleys Fired 59 | . 5 10 27 17 Largest 3 | . 2 2 3 3 Hottest 133 | . 80 80 79 133 Shots Fired 136 | . 10 20 60 46 Gun 112 | . 5 16 53 38 Cannon . | . . . . . Launcher 24 | . 5 4 7 8 Special . | . . . . . Kinetic 91 | . . 12 53 26 Thermal 15 | . 5 4 . 6 Explosive 24 | . 5 4 7 8 Electromagnetic 6 | . . . . 6 Robot Hit Streak 11 | . 7 10 11 6 Robot Miss Streak 6 | . 1 5 6 4 Penetration Max . | . . . . . Secondary Targets 3 | . . . 2 1 Max Gunslinging Chain 1 | . . . 1 1 Shots Hit Robots 86 | . 8 13 42 23 Core Hits 51 | . . 11 26 14 Critical Hits 1 | . . . . 1 Critical Kills . | . . . . . Critical Parts Destroyed 1 | . . . . 1 Melee Attacks . | . . . . . Impact . | . . . . . Slashing . | . . . . . Piercing . | . . . . . Sneak Attacks . | . . . . . Combat Hostiles . | . . . . . Follow-up Attacks . | . . . . . Damage Inflicted 2400 | . 184 368 1035 813 Guns 971 | . 39 164 473 295 Cannons . | . . . . . Explosions 1394 | . 140 204 555 495 Melee . | . . . . . Ramming 35 | . 5 . 7 23 Kinetic 771 | . . 125 473 173 Thermal 137 | . 39 39 . 59 Explosive 1394 | . 140 204 555 495 Electromagnetic 63 | . . . . 63 Impact . | . . . . . Slashing . | . . . . . Piercing . | . . . . . Highest Corruption 4 | . . . 4 4 Average Corruption 3 | . . . 3 4 Corruption Purged . | . . . . . Effects 14 | . . . 8 6 Matter Fused 1 | . . . 1 . Heat Flow Errors 3 | . . . 2 1 Energy Discharges 2 | . . . . 2 Parts Rejected 1 | . . . . 1 Data Loss (minor) 3 | . . . 3 . Targeting Errors 3 | . . . 1 2 Weapon Failures 1 | . . . 1 . Overload Shots . | . . . . . Overflow Damage 19 | . 3 . 7 9 Projectiles . | . . . . . Explosions 19 | . 3 . 7 9 Melee . | . . . . . Knockbacks . | . . . . . Impact . | . . . . . Kinetic . | . . . . . Secondary . | . . . . . Self-Inflicted Damage 161 | . 2 40 3 116 Shots 5 | . . 1 1 3 Rammed 12 | . 1 . 1 10 Targets Rammed 16 | . 1 . 1 14 Kicked 4 | . . . . 4 Crushed . | . . . . . Highest Temperature 218 | . 171 90 172 218 Average Temperature 73 | . 87 31 81 89 Received Heat Transfer 711 | . 36 45 117 513 Siege Activations . | . . . . . Robots Corrupted . | . . . . . Combat Hostiles . | . . . . . Parts Fried . | . . . . . Impact Corruptions . | . . . . . Robots Melted . | . . . . . Combat Hostiles . | . . . . . Parts Melted . | . . . . . Heat Transferred 370 | . 111 111 . 148 Parts Sabotaged . | . . . . . Parts Stolen . | . . . . . Parts Stripped . | . . . . . Power Chain Reactions . | . . . . . Missiles Intercepted . | . . . . . Alert | -11 -10 -9 -8 -8 ------- Run | Scr Mat Mat Mat Sto Peak Influence 656 | . 45 293 656 447 Initial 192 | . . 18 123 192 Average 244 | . 13 188 340 325 Maximum Alert Level 2 | . . 1 2 2 Low Security (%) 30 | 100 100 26 12 9 Level 1 57 | . . 73 64 74 Level 2 12 | . . . 23 16 Level 3 . | . . . . . Level 4 . | . . . . . Level 5 . | . . . . . High Security . | . . . . . Max Security . | . . . . . Squads Dispatched 12 | . 2 1 2 7 Investigation 2 | . 1 . 1 . Extermination . | . . . . . Reinforcement 6 | . 1 1 . 4 Assault . | . . . . . Garrison 4 | . . . 1 3 Intercept . | . . . . . Construction Impeded 1 | . . . . 1 Haulers Reinforced . | . . . . . Stealth | -11 -10 -9 -8 -8 --------- Run | Scr Mat Mat Mat Sto Distress Signals 2 | . . . 2 . Communications Jammed . | . . . . . Distress Signals . | . . . . . Times Spotted 62 | . 5 9 20 28 Peak Tracking Total 18 | . 4 5 5 18 Tactical Retreats 7 | . 1 . 2 4 Traps | -11 -10 -9 -8 -8 ------- Run | Scr Mat Mat Mat Sto Traps Triggered 4 | . 1 . 2 1 Indirectly . | . . . . . Trap Hack Attempts . | . . . . . Triggered . | . . . . . Disarmed . | . . . . . Reprogrammed . | . . . . . Reused . | . . . . . Traps Extracted . | . . . . . Installed . | . . . . . Triggered . | . . . . . Machines | -11 -10 -9 -8 -8 ---------- Run | Scr Mat Mat Mat Sto Machines Disabled 9 | . 1 3 2 3 Max in Single Turn 2 | . 1 2 1 1 Machines Sabotaged . | . . . . . Garrisons Compromised . | . . . . . Overloaded Fab Kills . | . . . . . Fab Network Shutdowns . | . . . . . Hacking | -11 -10 -9 -8 -8 --------- Run | Scr Mat Mat Mat Sto Machines Accessed 3 | . . 1 1 1 Terminals 3 | . . 1 1 1 Fabricators . | . . . . . Repair Stations . | . . . . . Recycling Units . | . . . . . Scanalyzers . | . . . . . Garrison Access . | . . . . . Total Hacks 7 | . . 2 4 1 Successful 4 | . . 2 1 1 Failed 3 | . . . 3 . Catastrophic . | . . . . . Database Lockouts . | . . . . . Manual 4 | . . 3 1 . Terminals 7 | . . 2 4 1 Fabricators . | . . . . . Repair Stations . | . . . . . Recycling Units . | . . . . . Scanalyzers . | . . . . . Garrison Access . | . . . . . Terminal Hacks 3 | . . 1 1 1 Record 1 | . . . 1 . Open Door 1 | . . . . 1 Locate Traps 1 | . . 1 . . Fabricator Hacks . | . . . . . Repair Station Hacks . | . . . . . Recycling Unit Hacks . | . . . . . Scanalyzer . | . . . . . Garrison Access Hacks . | . . . . . Unauthorized Hacks 1 | . . 1 . . Terminals 1 | . . 1 . . Assimilate 1 | . . 1 . . Fabricators . | . . . . . Repair Stations . | . . . . . Recycling Units . | . . . . . Scanalyzers . | . . . . . Garrison Access . | . . . . . Data Cores Recovered . | . . . . . Used . | . . . . . Hacking Detections 2 | . . 1 1 . Full Trace Events 2 | . . 1 1 . Feedback Events . | . . . . . Feedback Blocked . | . . . . . Robot Schematics Acquired . | . . . . . Robots Built . | . . . . . Matter . | . . . . . Time . | . . . . . Total Robot Build Rating . | . . . . . Part Schematics Acquired . | . . . . . Parts Built . | . . . . . Matter . | . . . . . Time . | . . . . . Total Part Build Rating . | . . . . . Parts Repaired . | . . . . . Time . | . . . . . Parts Recycled . | . . . . . Recycled Matter . | . . . . . Retrieved Matter . | . . . . . Retrieved Components . | . . . . . Parts Scanalyzed . | . . . . . Part Schematics Acquired . | . . . . . Parts Damaged . | . . . . . Bothacking | -11 -10 -9 -8 -8 ------------ Run | Scr Mat Mat Mat Sto Used RIF Installer . | . . . . . Robots Hacked . | . . . . . Non-combat . | . . . . . Combat . | . . . . . Robot Hacks Applied . | . . . . . Relay Couplers Released . | . . . . . Robots Rewired . | . . . . . Allies Hacked . | . . . . . Hacks Repelled . | . . . . . Allies | -11 -10 -9 -8 -8 -------- Run | Scr Mat Mat Mat Sto Total Allies . | . . . . . Largest Group . | . . . . . Highest-Rated Group . | . . . . . Highest-Rated Ally . | . . . . . Total Orders . | . . . . . Ally Attacks . | . . . . . Total Damage . | . . . . . Kills . | . . . . . Allies Corrupted . | . . . . . Allies Melted . | . . . . . Intel | -11 -10 -9 -8 -8 ------- Run | Scr Mat Mat Mat Sto Robot Analysis Total . | . . . . . Derelict Logs Recovered . | . . . . . Drone Launches . | . . . . . Drone Recoveries . | . . . . . Exploration | -11 -10 -9 -8 -8 ------------- Run | Scr Mat Mat Mat Sto Turns Passed 1048 | 59 125 240 411 213 Spaces Moved 625 | 47 99 178 186 115 Core 43 | 1 . . . 42 Treads 233 | . . 7 186 40 Legs 33 | . . . . 33 Wheels 316 | 46 99 171 . . Hover . | . . . . . Flight . | . . . . . Fastest Speed 50 | 50 100 90 160 50 Average Speed 118 | 98 100 95 160 113 Slowest Speed 160 | 100 100 160 160 160 Overloaded Moves . | . . . . . Propulsion Burnouts . | . . . . . Robots Hopped . | . . . . . Cave-ins Triggered . | . . . . . Exploration Rate (%) 23 | 3 25 26 28 34 Regions Visited 4 Branch Regions 1 Pre-discovered Areas . | . . . . . Known Exits Taken . | . . . . . Unknown Exits Taken 4 | 1 1 1 1 . Scrap Searched . | . . . . . Spaces Dug . | . . . . . Terrain Destroyed 156 | . 37 26 50 43 Melee . | . . . . . Projectile . | . . . . . AOE 156 | . 37 26 50 43 Terrain Rammed . | . . . . . Walls Destroyed . | . . . . . Machines Disabled . | . . . . . Actions | -11 -10 -9 -8 -8 --------- Run | Scr Mat Mat Mat Sto Total 802 | 56 113 231 244 158 Wait 13 | . . 10 3 . Move 621 | 46 98 177 185 115 Hop . | . . . . . Pick Up 16 | 4 3 6 3 . Fast Attach 26 | 6 2 6 8 4 Attach 6 | . . 2 1 3 Detach . | . . . . . Swap 12 | . 2 6 4 . Drop 33 | . 2 14 12 5 Fire 59 | . 5 10 27 17 Melee . | . . . . . Ram 4 | . 1 . . 3 Kick 9 | . . . . 9 Crush 3 | . . . 1 2 Escape Stasis . | . . . . . Rewire . | . . . . . Trap . | . . . . . Miscellaneous . | . . . . . Route ------- -11/Scrapyard -10/Materials -9/Materials -8/Materials -8/Storage History --------- Turn | Location | Event 12 | -11/Scrapyard | Discovered new exit (range 15) 60 | -11/Scrapyard | Entered Materials 176 | -10/Materials | Discovered new exit (range 9) 185 | -10/Materials | Entered another Materials area 185 | -9/Materials | Evolved 2 slots: Utility x2 317 | -9/Materials | Build established: Mutant 399 | -9/Materials | Discovered new exit (range 4) 425 | -9/Materials | Entered another Materials area 425 | -8/Materials | Evolved 2 slots: Utility x1, Weapon x1 741 | -8/Materials | Garrison activated, responded to threat 797 | -8/Materials | Discovered new exit (range 16) 836 | -8/Materials | Entered Storage 1000 | -8/Storage | Lost 3 parts (1u2w) 1024 | -8/Storage | Core integrity fell below 50% 1030 | -8/Storage | Core integrity fell below 20% 1049 | -8/Storage | Destroyed by G-47 Trooper with Particle Gun Last Messages --------------- 01010_ U-05 Engineer lays Concrete. 01012_ Slammed into G-47 Trooper. 01013_ U-05 Engineer lays Concrete. 01013_ Slammed into G-47 Trooper. 01024_ System corrupted: Imp. Heat Sink rejected. 01024_ Imp. Propulsion Shielding destroyed. 01025_ Dropped Sml. Storage Unit. 01026_ Aluminum Leg destroyed. 01026_ Dropped Aluminum Leg. 01026_ R-06 Scavenger collects Aluminum Leg. 01029_ R-06 Scavenger destroyed. 01029_ K-01 Serf collects debris. 01037_ O-16 Technician: "IFF HANDSHAKE FAILED. SECURING TERMINAL." 01039_ Slammed into A-02 Transporter. 01040_ O-16 Technician uses terminal to summon reinforcements. 01040_ ALERT: Hostiles spotted, dispatching reinforcements to Terminal S008. 01040_ O-16 Technician locks terminal. 01048_ Slammed into G-47 Trooper. 01049_ A-02 Transporter destroyed. Map ----- +----------------------------------------------------+ | | | | | | | | | | | ???????????????????????????????????? | | ???????????????????????????????????? | | ???????????????????????????????????? | | ???????????????????????????????????? | | ???????????????????????????????????? | | ???????????????????????????????????? | | ???????????????????????????????????? | | ???????????????????????????????????? | | ???????????????????????????????????? | | ???????????????????????????????????? | | ???????????????????????????????????? | | ???????????????????????????????????? | | ???????????????????????????????????? | | ???????????????????????????????????? | | ???????????????????????????????????? | | ???????????""""????????????????????? | | ??????????## #????????????????????? | | ??????????#T #?????????????###????? | | ?########### ###"??????????# ????? | | ?# """ """ #g ## ?????###### "???? | | ?# """ """ @ =##+####### # "???? | | ?# """ """ #g[[%[= Y # "???? | | ?# g# hgYggog Yg + "???? | | ?# #########T### # "???? | | ?# #???????###?## ## "???? | | ?# #????????????# #? ???? | | ?# o #????????????# ###+##??? | | ?######T####????????????# #### | | ??????###???????????????# =!! | | ????????????????????????#+#### !% | | ?????????????????????????????# = | | ?????????????????????????????# | | ????????????????????????? ??+ # | | ????????????????###????#? ??# # | | ???????????????##T###### ? ?##### # | | ????########???# ! !!## ?????# # | | ???## # ###?# !!!## ?????# # | | ???# ### ###### ????# # | | ?### #####+####??# ????# # | | ?# / #??# ##### # | | ??# ##### #??# """# # | | ??# #?# #### "G"# # | | ??# #?# ##########"="# # | | ??#"" ###?# ] *= [# | | ??#"Y #???# ![ | +----------------------------------------------------+ Best States ------------- Heat Dissipation 51 Energy Generation 12 Energy Capacity 265 Matter Stores 306 Matter Capacity 400 Sight Range 16 Robot Scan Range 10 Terrain Scan Density 60 Additional Mass Support 9 Armor Coverage 300 Propulsion Shielding 66 Evasion (%) 50 Launcher Accuracy 20 Recoil Reduction 2 Item Schematics ----------------- None Robot Schematics ------------------ None Fabricated ------------ Nothing Alien Tech Used ----------------- None Achievements -------------- True Hacker Challenges ------------ None Game ------ Seed TrackerNeutrinoFlakker Manual? 0 Play Time 00:24:20 Cumulative 5.0 hours Start 2020.12.20 @ 17:43:41 End 2020.12.21 @ 08:17:18 Sessions 2 Manual Loads 0 Difficulty Rogue Special Mode None Game No. 8 Rogue 8 Adventurer 0 Explorer 0 Win Type - Total 0 Types 0/0/0/0/0/0/0/0/0 Lore% 8 Gallery% 19 Achievement% 15 Wizard Run 0 Options --------- ASCII 1 Keyboard 0 Movement Numpad Keybinds 0 Fullscreen 1 Font 18/Terminus Map View 76x50 Tactical HUD 1 Map Filters NONE Filters NONE Steam 0 RUN: 5afb6f6f-ac41-42a1-b471-f2cfc993757d